bitfinex-derivatives/quotes_ETHF0:USTF0_20230830
["timestamp","ask_amount","ask_price","bid_price","bid_amount"]
[1693402689841,5.47773648,1712.2,1712.1,2.3901]
[1693402690034,6.91131824,1712.2,1712.0,1.66432876]
[1693402690230,13.139,1712.1,1712.0,1.44539815]
[1693402690934,13.139,1712.1,1710.7,13.139]
[1693402690935,3.0,1711.6,1710.8,3.2078]
[1693402691230,3.2078,1711.2,1710.6,3.2078]
[1693402691437,3.2078,1711.0,1710.3,3.2078]
[1693402691630,3.2078,1710.6,1710.3,7.75790603]
[1693402691829,3.2078,1710.6,1709.5,3.2078]
[1693402691830,3.2078,1710.4,1709.5,3.2078]
[1693402692039,3.2078,1710.4,1709.3,3.2078]
[1693402692040,13.139,1709.8,1709.3,3.2078]
[1693402692241,6.2078,1709.4,1708.7,0.52562]
[1693402692442,16.3468,1708.8,1708.7,1.27307149]
[1693402692736,5.0,1707.0,1706.9,2.24586496]
[1693402692943,20.40893648,1707.0,1706.8,4.31460554]
[1693402693136,4.64138176,1706.9,1706.8,4.31460554]
[1693402693343,4.64138176,1706.9,1706.5,0.89385209]
[1693402693344,13.139,1706.7,1706.5,1.12785209]
[1693402693542,13.139,1706.7,1706.6,3.2078]
[1693402693750,3.2078,1707.4,1706.6,6.64570216]
[1693402693949,3.2078,1706.3,1705.1,3.28163428]
[1693402694237,3.2078,1704.6,1703.8,6.09600878]
[1693402694439,3.2078,1705.5,1704.5,3.2078]
[1693402694643,11.712,1706.4,1705.4,3.2078]
[1693402694842,3.2078,1707.1,1706.5,3.0]
[1693402695048,1.47220602,1707.7,1706.3,17.139]
[1693402695049,3.2078,1707.3,1706.6,3.2078]
[1693402695239,3.2078,1707.3,1706.4,0.32304424]
[1693402695240,0.288,1705.8,1705.4,7.68630919]
[1693402695440,0.288,1705.8,1705.6,3.2078]
[1693402695643,0.16800001,1705.8,1705.7,18.139]
[1693402695852,3.2078,1707.4,1705.9,3.0]
[1693402696144,2.8278,1706.8,1706.3,2.70470539]
[1693402696335,1.80393648,1706.7,1706.0,11.23386695]
[1693402696540,1.80393648,1706.7,1706.4,3.2078]
[1693402696734,3.2078,1707.3,1706.6,3.03979999]
[1693402696947,3.2078,1707.5,1707.0,3.2078]
[1693402697237,5.01173648,1707.4,1706.8,3.2078]
[1693402697443,3.2078,1707.2,1706.3,21.9548]
[1693402697636,3.2078,1707.0,1706.9,0.17524219]
[1693402697841,3.2078,1707.4,1706.9,0.17524219]
[1693402698035,3.2078,1707.3,1706.8,0.0523011]
[1693402698238,3.2078,1707.1,1706.4,3.2078]
[1693402698438,1.80393648,1707.2,1706.4,3.2078]
[1693402698439,3.2078,1707.3,1706.6,3.2078]
[1693402698643,3.2078,1707.7,1707.1,3.2078]
[1693402698843,3.2078,1707.7,1706.8,3.2078]
[1693402699042,3.2078,1707.7,1707.2,7.77758639]
[1693402699245,3.4978,1707.8,1707.3,2.26993648]
[1693402699445,2.94471578,1708.0,1707.4,21.9548]
[1693402699644,2.94471578,1708.0,1707.8,0.5861]
[1693402699948,1.80393648,1707.9,1706.8,3.2078]
[1693402700147,2.6217,1707.8,1707.0,3.2078]
[1693402700441,3.2078,1707.7,1707.0,13.98775392]
[1693402700644,3.2078,1707.7,1707.0,6.29514957]
[1693402700645,3.2078,1707.5,1707.0,6.29514957]
[1693402700848,3.0,1707.7,1707.2,3.2078]
[1693402701053,3.0,1708.1,1707.4,3.2078]
[1693402701255,3.2078,1708.5,1707.8,3.2078]
[1693402701444,6.32325457,1708.5,1708.1,5.0]
[1693402701644,6.32325457,1708.5,1708.4,8.2078]
[1693402701852,0.74706209,1708.8,1708.4,3.79389999]
[1693402702043,0.74706209,1708.8,1708.7,3.2078]
[1693402702244,0.00845256,1709.1,1708.8,5.0]
[1693402702441,0.00845256,1709.1,1709.0,8.2078]
[1693402702650,12.61538966,1709.9,1709.3,5.0]
[1693402702849,18.747,1709.7,1709.1,3.2078]
[1693402703048,21.747,1709.4,1708.8,3.2078]
[1693402703251,18.747,1709.4,1708.8,3.2078]
[1693402703448,6.2078,1709.2,1708.5,2.6065]
[1693402703659,3.2078,1708.7,1708.5,2.6065]
[1693402703849,18.747,1708.8,1708.5,3.19259999]
[1693402704052,3.0,1708.6,1707.9,3.2078]
[1693402704350,6.2078,1708.6,1707.9,3.2078]
[1693402704753,21.9548,1708.4,1707.7,3.2078]
[1693402705048,18.747,1708.4,1707.6,5.0]
[1693402705249,21.9548,1708.4,1707.7,3.2078]
[1693402705550,6.52471822,1708.3,1707.6,5.0]
[1693402705745,5.70030394,1707.6,1707.4,8.2078]
[1693402705949,5.70030394,1707.6,1707.4,8.79389999]
[1693402706551,5.70030394,1707.6,1707.4,11.06383647]
[1693402706747,5.70030394,1707.6,1707.4,9.01349039]
[1693402707552,5.70030394,1707.6,1707.5,7.49814398]
[1693402707751,2.49250394,1707.6,1707.5,10.70594398]
[1693402707952,1.90690394,1707.6,1707.5,10.70594398]
[1693402708352,1.32130394,1707.6,1707.5,10.70594398]
[1693402708653,0.36020394,1707.6,1707.5,13.15124398]
[1693402708859,3.2078,1708.4,1707.7,2.94965392]
[1693402709057,3.2078,1708.4,1707.7,3.2078]
[1693402709253,2.6222,1708.5,1707.9,3.2078]
[1693402709446,24.9548,1708.7,1708.1,3.2078]
[1693402709646,21.9548,1708.7,1708.1,3.2078]
[1693402709950,3.2078,1708.9,1708.5,3.2078]
[1693402710157,292.2701,1710.7,1708.5,3.2078]
[1693402710158,21.9548,1709.4,1708.7,3.2078]
[1693402710362,0.02489909,1709.3,1708.8,3.2078]
[1693402710559,3.2078,1709.5,1708.8,3.2078]
[1693402710761,3.2048,1709.7,1709.0,3.2078]
[1693402710959,0.02488966,1709.6,1709.0,3.2078]
[1693402711257,4.85797372,1708.9,1708.7,3.2078]
[1693402711460,4.85797372,1708.9,1708.8,0.58609999]
[1693402711662,4.85797372,1708.9,1708.8,8.03851199]
[1693402711849,3.2078,1710.4,1708.9,3.2078]
[1693402712049,0.02487737,1710.3,1709.8,3.2078]
[1693402712250,0.02487737,1710.3,1710.0,3.2078]
[1693402712452,3.2078,1710.8,1710.2,3.2078]
[1693402712656,0.02486191,1710.7,1710.4,3.2078]
[1693402712854,2.64796191,1711.1,1710.6,3.2078]
[1693402713059,3.2078,1711.1,1710.6,3.2078]
[1693402713360,0.02486033,1710.6,1710.4,3.2078]
[1693402713560,0.02486033,1710.6,1710.5,2.85603647]
[1693402713759,0.30247468,1711.0,1710.5,10.28058791]
[1693402713958,0.30247468,1711.2,1710.9,3.2078]
[1693402714259,0.30247468,1711.2,1711.1,3.2078]
[1693402714458,0.02385384,1711.2,1711.1,3.2078]
[1693402714755,2.92587468,1712.1,1711.1,13.55281423]
[1693402714951,0.02384441,1712.0,1711.4,3.2078]
[1693402715155,3.2078,1711.9,1711.4,3.2078]
[1693402715360,0.03047493,1710.7,1710.6,3.0]
[1693402715653,0.03047493,1710.7,1710.6,13.49965705]
[1693402715866,0.00876655,1711.2,1710.6,16.49965705]
[1693402716052,0.00876655,1711.2,1711.1,3.2078]
[1693402716252,0.00876655,1711.2,1711.1,6.06383647]
[1693402716459,2.68056655,1711.9,1711.1,13.59281742]
[1693402716657,3.2078,1712.4,1711.7,3.2078]
[1693402717050,3.2078,1712.4,1711.0,18.747]
[1693402717051,0.02383349,1712.3,1711.9,3.2078]
[1693402717253,0.02383349,1712.3,1711.7,3.2078]
[1693402717453,3.2078,1712.2,1711.7,3.2078]
[1693402717655,0.02383349,1712.1,1711.8,2.26993648]
[1693402717954,2.69013349,1712.4,1711.9,3.79389999]
[1693402718149,2.29377001,1712.3,1711.9,3.43317606]
[1693402718352,0.02383353,1712.2,1711.9,3.43317606]
[1693402718555,3.2078,1712.7,1712.1,3.2078]
[1693402718755,0.02287675,1712.6,1712.1,3.2078]
[1693402719067,1.66697,1712.5,1712.2,2.26993648]
[1693402719367,1.66697,1712.5,1712.0,0.90913594]
[1693402719368,1.45645851,1712.4,1712.0,0.90913594]
[1693402719762,2.29281323,1712.3,1712.0,0.90913594]
[1693402719957,0.02287675,1712.3,1712.1,3.2078]
[1693402720163,0.02287675,1712.3,1712.2,0.60296647]
[1693402720367,0.00875964,1712.6,1712.2,0.60296647]
[1693402720661,0.02191642,1712.5,1712.2,0.60296647]
[1693402720863,3.22971642,1712.5,1712.2,0.60296647]
[1693402721159,3.2078,1712.3,1712.0,0.90913594]
[1693402721361,3.2078,1712.1,1712.0,0.90913594]
[1693402721561,5.47773648,1712.1,1712.0,0.90913594]
[1693402721964,6.93323466,1712.1,1712.0,0.90913594]
[1693402722859,6.93323466,1712.1,1711.4,5.6057]
[1693402723165,3.2078,1711.9,1711.5,2.5608]
[1693402723467,3.2078,1712.1,1711.6,0.60296647]
[1693402723665,0.02192362,1712.0,1711.6,0.60296647]
[1693402723860,2.26993648,1711.9,1711.6,0.60296647]
[1693402724058,2.26993648,1711.9,1711.4,4.38464991]
[1693402724257,3.2078,1711.5,1711.4,1.17684991]
[1693402724465,2.26993648,1711.5,1711.4,1.17684991]
[1693402724763,3.2078,1711.7,1711.4,1.17684991]
[1693402724959,3.2078,1712.0,1711.4,4.38464991]
[1693402725157,3.2078,1711.8,1711.4,4.38464991]
[1693402725362,0.0219317,1711.9,1711.6,3.2078]
[1693402725556,2.26993648,1711.8,1711.5,5.03194881]
[1693402725762,2.26993648,1711.8,1711.4,4.38464991]
[1693402726064,2.26993648,1711.8,1711.4,1.17684991]
[1693402726359,3.2078,1711.5,1711.4,1.17684991]
[1693402726559,6.91131824,1711.5,1711.4,1.17684991]
[1693402727162,6.93325798,1711.5,1711.4,1.17684991]
[1693402727768,0.25385842,1711.3,1710.7,3.2078]
[1693402727964,3.46165842,1711.3,1710.7,3.2078]
[1693402728459,3.46165842,1711.3,1710.9,3.2078]
[1693402728962,3.46165842,1711.3,1711.0,7.69225341]
[1693402729157,3.46165842,1711.3,1710.9,3.2078]
[1693402729666,0.25385842,1711.3,1711.0,7.69813407]
[1693402730167,0.25385842,1711.3,1710.9,3.2078]
[1693402730372,0.2626247,1711.3,1710.9,3.2078]
[1693402730563,0.2626247,1711.3,1711.0,7.69391922]
[1693402730961,0.2626247,1711.3,1711.1,3.2078]
[1693402731866,7.17394294,1711.3,1710.9,3.2078]
[1693402732066,0.2626247,1711.3,1711.0,3.2078]
[1693402732564,0.2626247,1711.3,1711.0,10.90662844]
[1693402733370,0.02193784,1711.7,1711.2,3.2078]
[1693402733566,3.2078,1712.1,1711.4,3.2078]
[1693402733873,0.29960744,1711.3,1711.1,8.96183207]
[1693402734171,0.29960744,1711.3,1711.2,3.2078]
[1693402734368,3.2078,1711.9,1711.2,10.6545692]
[1693402735068,3.2078,1711.7,1711.3,6.28633486]
[1693402735365,3.2078,1711.8,1711.1,2.5215]
[1693402735567,3.2078,1711.6,1711.1,2.5215]
[1693402735871,3.2078,1711.6,1711.3,7.53724484]
[1693402736168,0.46240774,1712.6,1711.2,10.86379731]
[1693402736169,3.2078,1711.8,1711.2,10.86379731]
[1693402736373,3.2078,1711.8,1711.2,3.2078]
[1693402736565,3.2078,1711.8,1711.3,7.49336543]
[1693402736765,3.2078,1711.8,1711.3,5.44730532]
[1693402736962,3.2078,1711.8,1711.4,3.2078]
[1693402737469,3.2078,1712.0,1711.5,7.42626941]
[1693402737664,3.2078,1712.0,1711.6,3.2078]
[1693402738063,3.2078,1712.2,1711.7,7.62846608]
[1693402739472,3.2078,1712.4,1711.8,3.2078]
[1693402739769,3.2078,1712.4,1711.9,13.144]
[1693402739971,3.2078,1712.4,1711.9,20.61328734]
[1693402740478,3.2078,1712.4,1712.0,3.2078]
[1693402740770,3.2078,1712.4,1712.1,7.67353632]
[1693402740972,3.2078,1712.8,1712.2,16.3518]
[1693402741178,2.6238,1712.8,1712.4,3.2078]
[1693402741366,2.6238,1712.8,1712.2,13.144]
[1693402741367,0.96738249,1712.3,1712.2,13.144]
[1693402741565,0.96738249,1712.3,1712.0,3.2078]
[1693402741566,0.96738249,1712.3,1711.8,16.3518]
[1693402741772,3.2078,1712.1,1711.8,13.144]
[1693402741975,0.96738249,1712.3,1711.9,7.50951443]
[1693402742276,0.96738249,1712.3,1712.0,3.2078]
[1693402742475,0.96738249,1712.3,1712.1,13.144]
[1693402742670,0.38338249,1712.3,1712.1,20.60786094]
[1693402742875,3.2078,1713.2,1712.2,3.2078]
[1693402743079,0.47076963,1713.4,1712.8,13.144]
[1693402743080,2.6238,1713.4,1712.8,13.144]
[1693402743275,3.2078,1713.6,1712.7,3.2078]
[1693402743479,3.2078,1713.9,1713.8,0.5841]
[1693402743775,3.2078,1713.9,1713.2,13.144]
[1693402743776,0.10075411,1713.6,1713.2,13.144]
[1693402743979,3.2078,1713.3,1713.2,13.144]
[1693402744174,3.2078,1713.3,1712.8,13.144]
[1693402744985,3.2078,1713.3,1712.9,7.57980175]
[1693402745278,0.10075411,1713.6,1713.1,13.144]
[1693402745677,2.72485411,1713.7,1713.2,7.73199724]
[1693402746076,3.2078,1713.4,1713.1,13.144]
[1693402746475,3.2078,1713.9,1713.3,13.144]
[1693402746778,15.37164202,1714.6,1713.6,3.2078]
[1693402746779,3.2078,1714.1,1713.6,3.2078]
[1693402747079,4.53675886,1714.9,1713.3,13.144]
[1693402747080,5.47773648,1714.0,1713.3,13.144]
[1693402747279,3.2078,1713.6,1713.1,13.144]
[1693402747578,2.6243,1713.8,1713.4,24.03548488]
[1693402747773,3.2078,1714.1,1713.4,13.144]
[1693402747975,2.6242,1714.1,1713.5,0.36135758]
[1693402748181,3.2078,1713.9,1713.5,7.52658925]
[1693402748375,3.2078,1714.3,1713.6,3.2078]
[1693402748576,13.144,1714.5,1713.8,3.2078]
[1693402748577,3.2078,1714.4,1713.8,3.2078]
[1693402748777,3.22925728,1714.2,1713.7,3.2078]
[1693402748978,0.02145728,1714.3,1713.9,3.2078]
[1693402749179,2.29139351,1714.2,1713.9,3.2078]
[1693402749385,3.2078,1714.4,1713.9,3.2078]
[1693402749683,0.02145648,1714.3,1713.9,3.2078]
[1693402750282,2.29139296,1714.3,1713.7,3.2078]
[1693402750482,0.02145648,1714.2,1713.9,3.2078]
[1693402750881,3.2078,1714.4,1713.9,3.2078]
[1693402751076,0.0214546,1714.3,1713.7,3.2078]
[1693402751280,0.0214546,1714.3,1713.5,13.144]
[1693402751281,0.0214546,1714.3,1713.9,3.2078]
[1693402751880,3.2078,1714.2,1713.5,3.2078]
[1693402752086,3.2078,1713.8,1713.1,3.2078]
[1693402752390,3.2078,1713.6,1713.1,3.2078]
[1693402752580,2.26993648,1713.5,1713.1,3.2078]
[1693402752783,3.2078,1713.8,1713.3,3.2078]
[1693402753084,3.2078,1714.2,1713.5,3.2078]
[1693402753280,2.6242,1714.4,1713.7,3.2078]
[1693402753680,23.71833261,1714.7,1713.5,3.2078]
[1693402753681,3.50308049,1713.6,1713.5,3.2078]
[1693402754189,2.91948049,1713.6,1713.5,3.2078]
[1693402754483,2.91948049,1713.6,1713.5,10.68921077]
[1693402754887,2.91948049,1713.6,1713.5,23.83321077]
[1693402755082,2.91948049,1713.6,1713.5,30.27319349]
[1693402755581,2.91948049,1713.6,1713.5,23.83321077]
[1693402756280,2.30548049,1713.6,1713.5,23.83321077]
[1693402756483,1.30428049,1713.6,1713.5,30.40047208]
[1693402756687,1.30428049,1713.6,1713.5,10.68921077]
[1693402756885,0.72068049,1713.6,1713.5,3.2078]
[1693402757585,0.72068049,1713.6,1713.5,10.63361957]
[1693402757785,0.13708049,1713.6,1713.5,10.63361957]
[1693402758183,0.13708049,1713.6,1713.5,23.77761957]
[1693402758380,8.049e-05,1713.6,1713.5,23.77761957]
[1693402758687,0.00875375,1713.7,1713.5,30.32574124]
[1693402759183,3.12947957,1714.3,1713.5,23.77761957]
[1693402759385,0.90688408,1714.2,1713.7,3.2078]
[1693402759587,2.22259549,1714.4,1713.9,3.2078]
[1693402759786,2.22259549,1714.4,1714.1,3.2078]
[1693402760090,2.22259549,1714.5,1714.1,3.2078]
[1693402760285,2.26993648,1714.5,1714.2,7.5727845]
[1693402760590,2.22259549,1714.6,1714.3,3.2078]
[1693402760792,5.47773648,1714.6,1714.2,10.35647707]
[1693402760992,3.2078,1714.6,1714.2,3.2078]
[1693402761297,3.2078,1714.6,1714.3,7.73648366]
[1693402761683,2.22259549,1714.8,1714.3,7.73648366]
[1693402761684,5.43039549,1714.8,1714.3,7.73648366]
[1693402761886,3.2078,1714.8,1714.3,7.73648366]
[1693402762081,2.8256,1714.8,1714.3,10.94428366]
[1693402762390,5.43039549,1715.1,1714.5,3.2078]
[1693402762588,3.2078,1715.1,1714.5,3.2078]
[1693402762885,3.2078,1715.1,1714.7,3.2078]
[1693402763084,2.6245,1715.1,1714.7,3.2078]
[1693402763286,2.6245,1715.1,1714.8,7.45315902]
[1693402763589,3.2078,1715.3,1714.9,3.2078]
[1693402763790,5.90597984,1715.5,1714.9,3.2078]
[1693402763990,0.02144337,1715.4,1715.0,7.59938589]
[1693402764385,0.02144337,1715.4,1715.1,3.2078]
[1693402764788,0.02144337,1715.5,1715.2,7.64614213]
[1693402764985,0.02144189,1715.4,1715.2,7.64614213]
[1693402765184,0.02144189,1715.5,1715.2,7.64614213]
[1693402765389,2.22259549,1715.8,1715.3,3.2078]
[1693402765691,0.02143913,1715.7,1715.5,3.2078]
[1693402765887,0.02143913,1715.8,1715.5,3.2078]
[1693402766083,0.02143792,1715.7,1715.6,7.63441348]
[1693402766288,3.2078,1715.9,1715.6,7.63441348]
[1693402766486,3.2078,1715.7,1715.1,3.2078]
[1693402766689,2.22259549,1716.0,1714.9,11.10194592]
[1693402766690,3.2078,1715.3,1714.9,11.10194592]
[1693402766886,3.2078,1715.3,1714.8,10.87804044]
[1693402766887,2.26993648,1715.2,1714.8,10.87804044]
[1693402767084,2.26993648,1715.2,1714.8,3.2078]
[1693402767293,2.26993648,1715.2,1714.7,2.5716]
[1693402767490,3.2078,1714.9,1714.7,2.5716]
[1693402767695,3.70351824,1714.8,1714.2,16.3518]
[1693402767894,3.2078,1714.6,1714.2,16.3518]
[1693402768091,3.2078,1714.6,1714.3,7.46823414]
[1693402768490,3.2078,1714.4,1714.0,3.2078]
[1693402768793,3.2078,1714.6,1714.0,3.2078]
[1693402769193,3.2078,1714.6,1713.9,13.144]
[1693402769393,3.2078,1714.6,1714.0,3.2078]
[1693402769588,3.2078,1714.8,1714.2,3.2078]
[1693402769794,3.2078,1714.8,1714.3,0.00874916]
[1693402769990,3.2078,1714.6,1714.3,0.00874916]
[1693402770194,3.2078,1714.4,1714.3,0.00874916]
[1693402770399,5.47773648,1714.4,1714.3,0.00874916]
[1693402770693,6.91131824,1714.4,1714.3,0.00874916]
[1693402771396,3.70351824,1714.4,1714.3,0.00874916]
[1693402771597,3.2078,1714.6,1714.3,0.00874916]
[1693402772293,1.43358176,1714.5,1714.3,0.00874916]
[1693402773099,5.47773648,1714.6,1714.3,0.00874916]
[1693402773500,1.43358176,1714.5,1714.3,0.00874916]
[1693402773694,0.00012753,1714.2,1713.9,3.2078]
[1693402773894,0.00012753,1714.2,1714.1,3.2078]
[1693402774292,0.00012753,1714.2,1714.1,10.96320053]
[1693402774493,0.00012753,1714.2,1714.1,3.2078]
[1693402774690,0.00012753,1714.2,1713.8,16.3518]
[1693402774894,0.00012753,1714.2,1714.0,3.2078]
[1693402775091,0.00012753,1714.2,1714.1,20.67156818]
[1693402775397,0.00012753,1714.2,1714.1,27.20102082]
[1693402775695,2.6246,1715.5,1714.2,3.2078]
[1693402775906,3.2078,1715.7,1715.0,3.2078]
[1693402776091,3.2078,1715.5,1715.0,3.2078]
[1693402776401,2.26993648,1715.4,1715.0,3.2078]
[1693402776601,3.2078,1715.3,1714.6,16.3518]
[1693402777095,7.52259039,1715.9,1715.1,3.2078]
[1693402777294,3.2078,1715.7,1715.2,13.144]
[1693402777604,2.26993648,1715.6,1715.1,3.2078]
[1693402777898,3.2078,1715.9,1715.1,3.2078]
[1693402777899,16.3518,1715.9,1715.1,3.2078]
[1693402778094,3.6826281,1716.1,1715.3,3.2078]
[1693402778295,3.6826281,1716.1,1715.6,3.2078]
[1693402778489,2.26993648,1716.0,1715.6,3.2078]
[1693402778693,2.26993648,1716.0,1715.8,3.2078]
[1693402778897,1.43358176,1715.9,1715.8,3.2078]
[1693402779097,1.43358176,1715.9,1715.5,3.2078]
[1693402779298,2.26993648,1715.8,1715.5,3.2078]
[1693402779997,0.4748281,1716.1,1715.5,3.2078]
[1693402780297,3.2078,1716.3,1715.7,3.2078]
[1693402780498,0.02143416,1716.2,1715.7,3.2078]
[1693402780700,5.47773648,1716.1,1715.5,3.2078]
[1693402780897,0.02143416,1716.0,1715.5,3.2078]
[1693402781199,5.47773648,1715.9,1715.5,3.2078]
[1693402781703,2.26993648,1715.9,1715.5,3.2078]
[1693402781896,2.26993648,1715.9,1715.4,13.144]
[1693402782102,2.26993648,1715.9,1715.5,3.2078]
[1693402782501,2.26993648,1715.9,1715.7,3.2078]
[1693402783099,2.27867927,1715.9,1715.7,3.2078]
[1693402783301,0.00874279,1715.9,1715.7,3.2078]
[1693402784496,0.00874279,1715.9,1715.8,7.60580725]
[1693402785007,2.99108654,1716.3,1715.8,7.60580725]
[1693402785202,2.25004436,1716.6,1716.2,16.3518]
[1693402785397,4.81149858,1716.6,1716.2,13.144]
[1693402785601,2.25004436,1716.5,1716.3,7.69167674]
[1693402786103,2.25503968,1716.6,1716.4,16.3518]
[1693402786309,5.46283968,1716.9,1716.4,16.3518]
[1693402786501,5.46283968,1716.9,1716.6,3.2078]
[1693402786696,2.25503968,1717.0,1716.7,13.144]
[1693402786900,2.43520784,1717.1,1716.8,3.2078]
[1693402787202,1.67253968,1717.1,1716.9,7.69353333]
[1693402787600,1.43358176,1717.0,1716.9,7.69353333]
[1693402787804,4.06648949,1717.4,1716.8,3.2078]
[1693402787805,6.96585924,1717.6,1717.0,13.144]
[1693402788008,0.02141848,1717.5,1717.0,16.3518]
[1693402788202,0.02141848,1717.5,1717.1,7.45817505]
[1693402788504,3.2078,1717.6,1717.1,7.45817505]
[1693402788704,2.26993648,1717.5,1717.1,7.45817505]
[1693402788902,2.26993648,1717.5,1717.0,13.144]
[1693402788903,3.2078,1717.4,1717.0,13.144]
[1693402789098,2.26993648,1717.3,1717.0,13.144]
[1693402789303,1.43358176,1717.2,1717.0,13.144]
[1693402789608,3.2078,1717.6,1717.1,10.6317776]
[1693402789907,3.2078,1717.8,1717.2,13.144]
[1693402790101,0.00873464,1717.5,1717.3,3.2078]
[1693402790298,1.4423164,1717.5,1717.3,7.53928017]
[1693402790503,0.00873464,1717.5,1717.3,7.53928017]
[1693402790710,0.00873464,1717.5,1717.4,13.144]
[1693402790901,0.00873464,1717.5,1717.4,19.76023541]
[1693402791102,3.75805924,1718.4,1717.4,19.76023541]
[1693402791103,3.09144154,1718.4,1717.4,20.85709258]
[1693402791303,0.02141041,1718.3,1717.8,16.3518]
[1693402791504,1.69523648,1718.2,1717.9,0.5747]
[1693402791706,0.02141041,1718.1,1717.9,8.13132742]
[1693402792009,0.47722746,1718.4,1718.0,16.3518]
[1693402792207,0.02140811,1718.3,1718.1,0.5747]
[1693402792404,3.75805924,1718.8,1718.1,14.34213298]
[1693402792605,0.02140563,1718.7,1718.2,16.3518]
[1693402792901,0.02140563,1718.8,1718.6,16.3518]
[1693402793098,0.02140599,1718.7,1718.6,16.3518]
[1693402793306,6.38395924,1719.2,1718.6,16.9265]
[1693402793501,6.85247596,1719.2,1718.6,18.71744223]
[1693402793702,3.2078,1718.7,1718.5,9.64954091]
[1693402793898,3.70351824,1718.6,1718.0,16.36053006]
[1693402794107,3.2078,1718.5,1718.0,13.15273006]
[1693402794309,3.2078,1718.5,1718.1,7.97414886]
[1693402794812,3.2078,1718.5,1718.3,13.144]
[1693402795110,3.2078,1718.8,1718.3,13.7187]
[1693402795311,2.26993648,1718.7,1718.3,13.7187]
[1693402795514,0.0214045,1718.6,1718.3,13.7187]
[1693402795820,1.43358176,1718.5,1718.3,13.7187]
[1693402796109,3.2078,1718.4,1718.0,0.00873006]
[1693402796313,0.0214075,1718.3,1718.0,0.58343006]
[1693402796511,3.2078,1718.4,1718.0,0.58343006]
[1693402796809,3.2078,1718.8,1718.1,23.95125023]
[1693402797005,3.2078,1718.5,1718.1,23.95125023]
[1693402797205,0.02140615,1718.7,1718.1,23.95125023]
[1693402797206,3.2078,1718.7,1718.2,0.5747]
[1693402797407,0.02140584,1718.6,1718.3,16.3518]
[1693402797606,0.02140584,1718.6,1718.5,13.144]
[1693402797801,3.2078,1718.9,1718.5,16.3518]
[1693402798010,0.0214033,1718.8,1718.5,16.3518]
[1693402798201,1.43358176,1718.7,1718.6,0.5747]
[1693402798405,1.45498506,1718.7,1718.6,0.5747]
[1693402798606,1.45498506,1718.7,1718.5,13.144]
[1693402798810,1.43358176,1718.7,1718.5,13.144]
[1693402799300,2.26993648,1718.8,1718.6,0.5747]
[1693402799504,0.02140336,1718.7,1718.6,0.5747]
[1693402800012,0.02140336,1718.7,1718.0,0.00873006]
[1693402800013,3.22920336,1718.7,1718.2,13.144]
[1693402800210,3.2078,1718.5,1718.2,13.144]
[1693402800405,3.2078,1718.3,1718.0,0.00873006]
[1693402800807,1.43358176,1718.2,1718.0,0.00873006]
[1693402801007,3.70351824,1718.2,1718.0,0.00873006]
[1693402801507,3.2078,1718.1,1718.0,0.00873006]
[1693402801707,3.2078,1718.1,1717.3,3.2078]
[1693402801708,0.00711226,1717.9,1717.3,3.2078]
[1693402801919,3.2078,1717.8,1717.3,3.2078]
[1693402802308,2.26993648,1717.7,1717.3,3.2078]
[1693402802612,3.2078,1717.4,1716.9,3.2078]
[1693402802915,3.2078,1717.4,1717.0,0.5747]
[1693402803103,5.47773648,1717.4,1716.6,17.01317697]
[1693402803407,3.2078,1717.2,1716.6,3.2078]
[1693402803610,3.2078,1717.2,1715.7,3.0]
[1693402803611,3.2078,1717.0,1716.2,16.3518]
[1693402803915,3.2078,1717.0,1716.2,3.2078]
[1693402804410,3.2078,1716.8,1716.2,3.2078]
[1693402805213,3.2078,1716.6,1716.0,3.2078]
[1693402805710,3.2078,1716.4,1715.8,3.2078]
[1693402805906,3.2078,1716.4,1715.6,3.2078]
[1693402806114,3.2078,1716.4,1715.8,3.2078]
[1693402806713,13.144,1716.6,1715.6,3.2078]
[1693402806714,3.2078,1716.2,1715.6,3.2078]
[1693402807405,3.2078,1716.2,1715.8,0.00874126]
[1693402807609,3.2078,1715.9,1715.8,0.00874126]
[1693402807810,4.64138176,1715.9,1715.8,0.00874126]
[1693402808010,6.91131824,1715.9,1715.8,0.00874126]
[1693402809016,6.91131824,1715.9,1715.2,3.2078]
[1693402809216,3.2078,1715.7,1715.2,3.2078]
[1693402809420,2.26993648,1715.6,1715.2,3.2078]
[1693402809708,2.26993648,1715.6,1715.1,13.144]
[1693402809915,3.2078,1715.4,1715.0,3.2078]
[1693402810109,2.26993648,1715.3,1715.0,3.2078]
[1693402810310,2.26993648,1715.3,1714.8,15.5443]
[1693402810311,1.43358176,1715.2,1714.8,5.6081]
[1693402810515,10.99318176,1715.7,1715.1,3.2078]
[1693402810816,3.2078,1715.7,1715.3,3.2078]
[1693402811012,2.26993648,1715.6,1715.3,3.2078]
[1693402811215,1.43358176,1715.5,1715.1,3.2078]
[1693402811518,2.26993648,1715.4,1715.1,3.2078]
[1693402811712,1.43358176,1715.3,1715.2,1.43358176]
[1693402812017,1.43358176,1715.3,1714.9,3.2078]
[1693402812313,2.26993648,1715.2,1714.9,3.2078]
[1693402812519,1.43358176,1715.1,1715.0,1.43358176]
[1693402812719,2.26993648,1715.2,1715.0,1.43358176]
[1693402813014,3.70351824,1715.2,1715.0,1.43358176]
[1693402813718,3.70351824,1715.2,1714.9,0.00874584]
[1693402814017,3.70351824,1715.2,1715.0,1.43358176]
[1693402814223,3.70351824,1715.2,1714.9,0.00874584]
[1693402814712,0.00874584,1715.3,1715.1,3.2078]
[1693402815111,0.00874584,1715.3,1715.2,2.00828176]
[1693402815312,1.4423276,1715.3,1715.2,0.5747]
[1693402815515,1.4423276,1715.3,1714.9,3.21654584]
[1693402815913,2.26993648,1715.2,1714.9,3.21654584]
[1693402816115,1.43358176,1715.1,1714.9,3.79124584]
[1693402816313,0.00874584,1715.3,1714.9,5.2248276]
[1693402816616,2.26993648,1715.2,1714.9,5.2248276]
[1693402816813,1.43358176,1715.1,1714.9,2.0170276]
[1693402817116,2.26993648,1715.0,1714.9,0.00874584]
[1693402817419,5.47773648,1715.0,1714.9,0.00874584]
[1693402817809,5.47773648,1715.0,1714.2,3.2078]
[1693402818016,5.47773648,1715.0,1714.4,3.2078]